fUSD/lending_fUSD_20250814
["ID","MTS","AMOUNT","RATE_DAILY","PERIOD"]
[379233408,1755202245691,-421653.29353886,0.00027392,2]
[379233409,1755202245709,-255345.32508165,0.00027392,2]
[379233412,1755202245836,-844.15097406,0.0002732,2]
[379233413,1755202245845,-52573.76169736,0.00027392,2]
[379233415,1755202245871,-2178.09234863,0.00026675,2]
[379233416,1755202245882,-187056.51740048,0.00027392,2]
[379233417,1755202245897,-16424.43375885,0.00027392,2]
[379233418,1755202248170,-522.86465031,0.00024893,3]
[379233419,1755202248220,-54.13534969,0.00024893,3]
[379233420,1755202248230,-424.36453298,0.00026557,2]
[379233421,1755202251690,-577.0,0.00025167,3]
[379233422,1755202251699,-577.0,0.00025441,3]
[379233423,1755202251708,-26.8965998,0.00025715,3]
[379233426,1755202350878,154.74,0.00013699,2]
[379233427,1755202502609,554.4,0.00024685,30]
[379233429,1755202537645,-154.74,0.00021404,2]
[379233430,1755202537668,-201.44033224,0.00021828,2]
[379233431,1755202538115,-1000.0,0.00021928,2]
[379233432,1755202538141,-2143.81966776,0.00022297,2]
[379233433,1755202546606,1000.0,0.0003013,120]
[379233434,1755202548103,1000.0,0.0003013,120]
[379233435,1755202550903,1000.0,0.0003013,120]
[379233436,1755202552189,1000.0,0.0003013,120]
[379233437,1755202553283,1000.0,0.0003013,120]
[379233438,1755202557490,1000.0,0.0003013,120]
[379233439,1755202562205,1000.0,0.0003013,120]
[379233440,1755202562839,1000.0,0.0003013,120]
[379233441,1755202564127,1000.0,0.0003013,120]
[379233442,1755202565393,1000.0,0.0003013,120]
[379233443,1755202566342,1000.0,0.0003013,120]
[379233444,1755202567114,1000.0,0.0003013,120]
[379233445,1755202568329,1000.0,0.0003013,120]
[379233446,1755202569034,1000.0,0.0003013,120]
[379233447,1755202569835,1000.0,0.0003013,120]
[379233448,1755202570483,1000.0,0.0003013,120]
[379233449,1755202571231,1000.0,0.0003013,120]
[379233450,1755202578578,1000.0,0.0003013,120]
[379233451,1755202579505,1000.0,0.0003013,120]
[379233452,1755202580292,1000.0,0.0003013,120]
[379233453,1755202580949,1000.0,0.0003013,120]
[379233454,1755202581693,1000.0,0.0003013,120]
[379233455,1755202589572,1000.0,0.0003013,120]
[379233458,1755202850324,191.52352317,0.00030137,120]
[379233461,1755203263709,154.74,0.00013699,2]
[379233481,1755203432312,-1200.0,0.00018998,2]
[379233482,1755203432321,-209.75213746,0.00018999,2]
[379233483,1755203432331,-220.57294518,0.00018999,2]
[379233484,1755203432340,-500.0,0.00018999,2]
[379233485,1755203432350,-383.39566461,0.00018999,2]
[379233486,1755203432359,-1505.55875129,0.00019,2]
[379233487,1755203432583,-295.99999997,0.00019,2]
[379233488,1755203432595,-2601.48398158,0.00019,2]
[379233489,1755203432606,-2276.87090154,0.00019,2]
[379233490,1755203432618,-2504.18626217,0.00019,2]
[379233491,1755203432641,-586.52799764,0.00019,2]
[379233492,1755203432653,-399.10882705,0.00019,2]
[379233499,1755203438159,-2952.3497159,0.00018899,2]
[379233500,1755203438168,-6569.2136993,0.00019,2]
[379233501,1755203438195,-14105.66385033,0.00019,2]
[379233502,1755203438227,-3646.76827121,0.00019,2]
[379233503,1755203438238,-10611.0,0.00019,2]
[379233504,1755203438250,-3332.61991817,0.00019,2]
[379233505,1755203438262,-1060.98778177,0.00019,2]
[379233506,1755203438290,-635.43999999,0.00019,2]
[379233507,1755203438349,-2188.56659074,0.00019,2]
[379233509,1755203438532,-1892.25821653,0.00019,2]
[379233510,1755203438545,-15825.3167371,0.00019,2]
[379233512,1755203438557,-1754.13510245,0.00019,2]
[379233514,1755203438568,-959.67999999,0.00019,2]
[379233516,1755203438602,-77647.34254938,0.00019,2]
[379233517,1755203438612,-1680.0,0.00020808,2]
[379233518,1755203438623,-500.0,0.00020899,2]
[379233519,1755203438633,-1000.0,0.00020899,2]
[379233520,1755203438642,-235.18018332,0.0002211,2]
[379233521,1755203438652,-3120.78109616,0.000225,2]
[379233522,1755203438661,-154.74,0.00022505,2]
[379233523,1755203438671,-271.45366913,0.00022666,2]
[379233524,1755203438680,-2351.0,0.00022791,2]
[379233525,1755203438690,-150.99,0.00023368,2]
[379233526,1755203438699,-250.0,0.00023693,2]
[379233527,1755203438709,-6766.01624109,0.00023748,3]
[379233528,1755203438719,-1313.79,0.0002383,2]
[379233529,1755203438728,-165.29692777,0.000239,2]
[379233530,1755203438738,-5714.92,0.0002395,2]
[379233531,1755203438748,-9999.99,0.0002395,2]
[379233532,1755203438758,-20663.49,0.0002395,2]
[379233533,1755203438767,-150.99,0.0002395,2]
[379233534,1755203438778,-294.26,0.0002395,2]
[379233535,1755203438787,-170.0,0.00023954,7]
[379233536,1755203438796,-60575.73177408,0.00024,2]
[379233537,1755203438806,-8327.49329345,0.00024,14]
[379233538,1755203438816,-5000.00689584,0.00024,5]
[379233539,1755203438825,-29417.28411569,0.00024,2]
[379233540,1755203438834,-249.91026753,0.00024,2]
[379233541,1755203438843,-185.58,0.00024023,2]
[379233542,1755203438852,-5270.068179,0.000241,2]
[379233543,1755203438861,-3615.18567949,0.0002421,2]
[379233544,1755203438870,-1000.0,0.000243,2]
[379233545,1755203438880,-160.21,0.000243,2]
[379233546,1755203438889,-200.0,0.00024329,2]
[379233547,1755203438898,-685.37,0.00024356,2]
[379233548,1755203438907,-666.0,0.00024356,3]
[379233549,1755203438916,-162.9,0.00024356,2]
[379233550,1755203438926,-152.43,0.00024362,2]
[379233551,1755203438935,-185.48,0.00024382,2]
[379233552,1755203438944,-6225.73,0.00024382,2]
[379233553,1755203438953,-500.0,0.00024385,2]
[379233554,1755203438963,-250.0,0.00024552,2]
[379233555,1755203438972,-163.28,0.00024589,2]
[379233556,1755203438981,-2500.0,0.00024594,2]
[379233557,1755203438991,-2500.0,0.00024594,2]
[379233558,1755203439001,-150.0,0.00024633,2]
[379233560,1755203439010,-150.0,0.00024633,2]
[379233562,1755203439019,-150.0,0.00024633,2]
[379233564,1755203439028,-150.0,0.00024633,2]
[379233566,1755203439038,-150.0,0.00024633,2]
[379233568,1755203439047,-150.0,0.00024633,2]
[379233570,1755203439057,-150.0,0.00024633,2]
[379233572,1755203439066,-150.0,0.00024633,2]
[379233574,1755203439076,-500.0,0.00024693,2]
[379233576,1755203439085,-901.1,0.00024708,2]
[379233578,1755203439094,-17410.32270184,0.000249,2]
[379233580,1755203439103,-4406.14524393,0.000249,2]
[379233582,1755203439113,-150.0,0.00024925,2]
[379233584,1755203439123,-3292.0,0.00024963,2]
[379233586,1755203439132,-186.0,0.00024976,3]
[379233588,1755203439142,-1744.00532137,0.00025,2]
[379233590,1755203439151,-4684.996435,0.00025,2]
[379233592,1755203439160,-2974.1944643,0.00025,2]
[379233594,1755203439169,-3159.07668543,0.00025,2]
[379233596,1755203439179,-19330.14274264,0.00025,2]
[379233598,1755203439188,-1881.99999991,0.00025,7]
[379233600,1755203439197,-1039.96385381,0.00025,2]
[379233602,1755203439207,-12456.8002501,0.00025,2]
[379233604,1755203439216,-15000.0,0.0002501,2]
[379233606,1755203439226,-4406.14524389,0.00025166,2]
[379233608,1755203439235,-150.0,0.0002518,4]
[379233610,1755203439244,-150.0,0.00025201,2]
[379233612,1755203439253,-162.9,0.00025269,2]
[379233614,1755203439262,-456.04362247,0.00025315,2]
[379233616,1755203439271,-534.86597697,0.0002543,2]
[379233618,1755203439282,-4406.14524389,0.00025433,2]
[379233620,1755203439291,-1000.0,0.00025499,2]
[379233622,1755203439300,-613.68833147,0.00025545,2]
[379233624,1755203439309,-500.0,0.00025554,2]
[379233626,1755203439319,-600.0,0.00025644,2]
[379233628,1755203439328,-3000.0,0.00025644,2]
[379233630,1755203439338,-160.0,0.00025644,2]
[379233632,1755203439347,-158.96173231,0.00025644,2]
[379233634,1755203439356,-277.35679052,0.00025644,2]
[379233636,1755203439365,-3839.56922701,0.00025644,2]
[379233639,1755203439374,-151.0,0.00025644,2]
[379233641,1755203439383,-300.0,0.00025644,2]
[379233643,1755203439393,-151.0,0.00025644,2]
[379233645,1755203439403,-692.51068598,0.0002566,2]
[379233647,1755203439412,-4406.14524389,0.00025699,2]
[379233649,1755203439421,-150.0,0.00025728,4]
[379233651,1755203439430,-771.33304048,0.00025775,2]
[379233653,1755203439439,-275.4384,0.0002579,2]
[379233655,1755203439448,-167.13273265,0.000258,2]
[379233657,1755203439463,-850.15539498,0.0002589,2]
[379233659,1755203439472,-24913.6005002,0.0002589,2]
[379233661,1755203439481,-1500.0,0.0002589,2]
[379233663,1755203439490,-34532.0512,0.000259,2]
[379233665,1755203439500,-1000.0,0.000259,2]
[379233667,1755203439509,-157.66835706,0.000259,2]
[379233669,1755203439519,-1000.0,0.00025914,2]
[379233671,1755203439528,-4406.14524389,0.00025965,2]
[379233673,1755203439539,-150.88,0.00025999,2]
[379233675,1755203439551,-152.09,0.00025999,2]
[379233677,1755203439560,-4419.57174433,0.00026,2]
[379233679,1755203439570,-33533.17941416,0.00026,2]
[379233681,1755203439579,-928.97774948,0.00026004,2]
[379233683,1755203439588,-168.0,0.00026006,7]
[379233685,1755203439598,-177.44178817,0.00026027,2]
[379233687,1755203439608,-167.13273265,0.00026095,2]
[379233689,1755203439618,-901.1,0.000261,2]
[379233691,1755203439627,-1007.80010398,0.00026119,2]
[379233693,1755203439636,-168.0,0.00026144,7]
[379233695,1755203439645,-162.9,0.00026183,2]
[379233697,1755203439654,-600.0,0.00026192,2]
[379233699,1755203439663,-151.0,0.00026192,2]
[379233701,1755203439672,-1086.62245848,0.00026234,2]
[379233703,1755203439681,-2500.0,0.00026266,2]
[379233705,1755203439690,-12456.8002501,0.00026274,2]
[379233707,1755203439700,-150.0,0.00026275,4]
[379233709,1755203439709,-1000.0,0.00026333,2]
[379233711,1755203439718,-1165.44481298,0.00026349,2]
[379233713,1755203439728,-87197.6017508,0.00026356,2]
[379233715,1755203439737,-84234.2130086,0.00026356,2]
[379233717,1755203439746,-190310.13,0.00026366,2]
[379233719,1755203439755,-10529.2766261,0.0002638,2]
[379233721,1755203439764,-168.0,0.00026381,2]
[379233723,1755203439774,-500.0,0.00026384,2]
[379233726,1755203439783,-12456.8002501,0.0002639,2]
[379233727,1755203439792,-10529.2766261,0.0002639,2]
[379233730,1755203439802,-167.13273265,0.0002639,2]
[379233732,1755203439811,-150.0,0.00026393,2]
[379233733,1755203439820,-500.0,0.00026397,7]
[379233735,1755203439829,-500.0,0.00026397,7]
[379233737,1755203439838,-500.0,0.00026397,7]
[379233739,1755203439847,-500.0,0.00026397,7]
[379233741,1755203439856,-583.49,0.00026397,7]
[379233743,1755203439865,-529.24,0.00026397,7]
[379233745,1755203439874,-26860.95241278,0.000264,2]
[379233747,1755203439883,-150.0,0.00026427,2]
[379233749,1755203439893,-10529.2766261,0.00026444,2]
[379233751,1755203439902,-12456.8002501,0.00026454,2]
[379233753,1755203439912,-1244.26716748,0.00026464,2]
[379233756,1755203439922,-1000.0,0.000265,3]
[379233758,1755203439932,-1000.0,0.000265,3]
[379233760,1755203439941,-1000.0,0.000265,3]
[379233762,1755203439951,-1323.08952199,0.00026578,2]
[379233765,1755203439960,-1297.0,0.000266,2]
[379233766,1755203439970,-10529.2766261,0.00026612,2]
[379233768,1755203439979,-168.0,0.00026633,2]
[379233770,1755203439989,-1000.0,0.00026641,2]
[379233772,1755203439999,-167.13273265,0.00026686,2]
[379233774,1755203440009,-1401.91187649,0.00026693,2]
[379233777,1755203440020,-600.0,0.0002674,2]
[379233780,1755203440030,-151.0,0.0002674,2]
[379233782,1755203440039,-168.0,0.00026751,2]
[379233784,1755203440049,-160.0,0.00026782,2]
[379233786,1755203440058,-2011.7414805,0.00026785,2]
[379233788,1755203440067,-410.41764181,0.00026785,2]
[379233790,1755203440076,-14919.43291916,0.00026786,2]
[379233792,1755203440086,-14591.9335624,0.0002679,2]
[379233794,1755203440095,-735.36652294,0.0002679,2]
[379233796,1755203440104,-205.49755903,0.00026792,2]
[379233798,1755203440113,-1000.0,0.00026792,2]
[379233800,1755203440123,-1769.51977747,0.00026793,2]
[379233802,1755203440132,-205.49755903,0.00026797,2]
[379233804,1755203440142,-5397.76174105,0.00026798,2]
[379233806,1755203440151,-410.41764181,0.00026802,2]
[379233808,1755203440160,-2462.505851,0.00026803,2]
[379233810,1755203440169,-2462.505851,0.00026804,2]
[379233811,1755203440179,-684.02940297,0.00026805,2]
[379233812,1755203440188,-5000.0,0.00026808,4]
[379233813,1755203440197,-1480.73423099,0.00026808,2]
[379233814,1755203440206,-629.30705078,0.0002681,2]
[379233815,1755203440216,-28873.50185883,0.0002681,2]
[379233816,1755203440225,-5397.76174105,0.00026814,2]
[379233817,1755203440235,-295.2417543,0.00026818,2]
[379233818,1755203440244,-629.30705078,0.00026819,2]
[379233819,1755203440255,-150.0,0.00026822,4]
[379233820,1755203440265,-684.02940297,0.00026824,2]
[379233821,1755203440275,-1000.0,0.00026826,2]
[379233822,1755203440284,-410.41764181,0.00026826,2]
[379233823,1755203440293,-10529.2766261,0.00026827,2]
[379233824,1755203440302,-2011.7414805,0.00026827,2]
[379233825,1755203440312,-1769.51977747,0.00026832,2]
[379233826,1755203440322,-684.02940297,0.00026833,2]
[379233827,1755203440331,-6888.12401847,0.00026833,2]
[379233828,1755203440340,-2462.505851,0.00026833,2]
[379233829,1755203440350,-735.36652294,0.00026833,2]
[379233830,1755203440362,-12456.8002501,0.00026837,2]
[379233831,1755203440372,-1769.51977747,0.0002684,2]
[379233832,1755203440381,-818.79146001,0.0002684,2]
[379233833,1755203440391,-5397.76174105,0.00026845,2]
[379233834,1755203440400,-1470.73304587,0.00026847,2]
[379233835,1755203440410,-5397.76174105,0.00026847,2]
[379233836,1755203440420,-684.02940297,0.00026849,2]
[379233837,1755203440431,-2354.94,0.00026849,14]
[379233838,1755203440439,-1769.51977747,0.00026849,2]
[379233839,1755203440449,-1000.0,0.00026849,2]
[379233840,1755203440462,-684.02940297,0.00026851,2]
[379233841,1755203440472,-2885.44153612,0.00026853,2]
[379233842,1755203440482,-1000.0,0.00026854,2]
[379233843,1755203440491,-28873.50185883,0.00026855,2]
[379233844,1755203440503,-1470.73304587,0.00026856,2]
[379233846,1755203440512,-1769.51977747,0.00026857,2]
[379233848,1755203440522,-1000.0,0.00026859,2]
[379233850,1755203440532,-1000.0,0.00026863,2]
[379233851,1755203440542,-2885.44153612,0.00026864,2]
[379233852,1755203440551,-629.30705078,0.00026865,2]
[379233853,1755203440560,-295.2417543,0.00026865,2]
[379233855,1755203440570,-818.79146001,0.00026866,2]
[379233857,1755203440579,-14591.9335624,0.00026866,2]
[379233859,1755203440589,-2011.7414805,0.00026867,2]
[379233861,1755203440598,-410.41764181,0.00026868,2]
[379233862,1755203440607,-1000.0,0.00026868,2]
[379233863,1755203440617,-6888.12401847,0.00026869,2]
[379233864,1755203440628,-629.30705078,0.00026872,2]
[379233865,1755203440638,-629.30705078,0.00026872,2]
[379233866,1755203440647,-6888.12401847,0.00026873,2]
[379233867,1755203440657,-14919.43291916,0.00026873,2]
[379233868,1755203440666,-1000.0,0.00026873,2]
[379233869,1755203440675,-5397.76174105,0.00026873,2]
[379233870,1755203440687,-14919.43291916,0.00026873,2]
[379233871,1755203440697,-295.2417543,0.00026875,2]
[379233872,1755203440707,-10529.2766261,0.00026877,2]
[379233873,1755203440716,-1000.0,0.00026878,2]
[379233874,1755203440726,-1000.0,0.00026878,2]
[379233875,1755203440735,-2011.7414805,0.00026879,2]
[379233876,1755203440744,-735.36652294,0.0002688,2]
[379233877,1755203440754,-684.02940297,0.0002688,2]
[379233878,1755203440764,-205.49755903,0.00026881,2]
[379233879,1755203440774,-1000.0,0.00026882,2]
[379233880,1755203440783,-28873.50185883,0.00026885,2]
[379233881,1755203440792,-2462.505851,0.00026885,2]
[379233882,1755203440802,-1470.73304587,0.00026887,2]
[379233883,1755203440812,-1000.0,0.00026887,2]
[379233884,1755203440821,-2462.505851,0.00026888,2]
[379233885,1755203440831,-2462.505851,0.00026888,2]
[379233886,1755203440840,-205.49755903,0.00026888,2]
[379233887,1755203440849,-28873.50185883,0.00026889,2]
[379233888,1755203440858,-12456.8002501,0.0002689,2]
[379233889,1755203440868,-10529.2766261,0.0002689,2]
[379233890,1755203440877,-818.79146001,0.0002689,2]
[379233891,1755203440887,-735.36652294,0.0002689,2]
[379233892,1755203440896,-1000.0,0.00026892,2]
[379233893,1755203440905,-14591.9335624,0.00026892,2]
[379233894,1755203440915,-2885.44153612,0.00026893,2]
[379233895,1755203440924,-14591.9335624,0.00026894,2]
[379233896,1755203440934,-295.2417543,0.00026896,2]
[379233897,1755203440944,-1000.0,0.00026897,2]
[379233898,1755203440957,-1470.73304587,0.00026897,2]
[379233899,1755203440967,-14591.9335624,0.00026899,2]
[379233900,1755203440977,-1021.56800629,0.000269,2]
[379233901,1755203440986,-1021.56800621,0.000269,2]
[379233902,1755203440995,-1021.56800621,0.000269,2]
[379233903,1755203441004,-1021.56800621,0.000269,2]
[379233904,1755203441014,-1021.56800621,0.000269,2]
[379233905,1755203441024,-1021.56800621,0.000269,2]
[379233906,1755203441033,-1021.56800621,0.000269,2]
[379233907,1755203441043,-1021.56800621,0.000269,2]
[379233908,1755203441052,-1021.56800621,0.000269,2]
[379233909,1755203441062,-1021.56800621,0.000269,2]
[379233910,1755203441070,-1021.56800621,0.000269,2]
[379233911,1755203441080,-1021.56800621,0.000269,2]
[379233912,1755203441090,-1021.56800621,0.000269,2]
[379233913,1755203441099,-1021.56800621,0.000269,2]
[379233914,1755203441108,-1021.56800621,0.000269,2]
[379233915,1755203441118,-1021.56800621,0.000269,2]
[379233916,1755203441127,-1021.56800621,0.000269,2]
[379233917,1755203441136,-1021.56800621,0.000269,2]
[379233918,1755203441147,-14919.43291916,0.000269,2]
[379233919,1755203441156,-1000.0,0.00026901,2]
[379233920,1755203441165,-6888.12401847,0.00026906,2]
[379233921,1755203441174,-1000.0,0.00026906,2]
[379233922,1755203441183,-5397.76174105,0.00026907,2]
[379233923,1755203441193,-2011.7414805,0.00026908,2]
[379233924,1755203441204,-1000.0,0.00026911,2]
[379233925,1755203441214,-410.41764181,0.00026914,2]
[379233926,1755203441224,-1470.73304587,0.00026915,2]
[379233927,1755203441233,-1000.0,0.00026915,2]
[379233928,1755203441242,-818.79146001,0.00026916,2]
[379233929,1755203441251,-410.41764181,0.00026916,2]
[379233930,1755203441260,-2011.7414805,0.00026918,2]
[379233931,1755203441270,-1000.0,0.0002692,2]
[379233932,1755203441279,-1769.51977747,0.00026922,2]
[379233933,1755203441289,-1559.55658549,0.00026923,2]
[379233934,1755203441299,-295.2417543,0.00026923,2]
[379233935,1755203441308,-28873.50185883,0.00026924,2]
[379233936,1755203441317,-1000.0,0.00026925,2]
[379233937,1755203441327,-14919.43291916,0.00026925,2]
[379233938,1755203441336,-295.2417543,0.00026926,2]
[379233939,1755203441346,-818.79146001,0.00026927,2]
[379233940,1755203441355,-1470.73304587,0.00026927,2]
[379233941,1755203441366,-1000.0,0.0002693,2]
[379233942,1755203441378,-2011.7414805,0.00026933,2]
[379233943,1755203441388,-1000.0,0.00026934,2]
[379233944,1755203441398,-6888.12401847,0.00026937,2]
[379233945,1755203441407,-735.36652294,0.00026938,2]
[379233946,1755203441417,-1000.0,0.00026939,2]
[379233947,1755203441426,-14591.9335624,0.00026943,2]
[379233948,1755203441435,-1000.0,0.00026944,2]
[379233949,1755203441446,-6888.12401847,0.00026947,2]
[379233950,1755203441457,-205.49755903,0.00026947,2]
[379233951,1755203441470,-5397.76174105,0.00026948,2]
[379233952,1755203441479,-1000.0,0.00026949,2]
[379233953,1755203441489,-10529.2766261,0.00026949,2]
[379233954,1755203441499,-295.2417543,0.00026952,2]
[379233955,1755203441508,-28873.50185883,0.00026953,2]
[379233956,1755203441518,-1000.0,0.00026953,2]
[379233957,1755203441528,-14919.43291916,0.00026956,2]
[379233958,1755203441540,-1769.51977747,0.00026958,2]
[379233959,1755203441551,-1000.0,0.00026958,2]
[379233960,1755203441560,-173.4,0.00026959,2]
[379233961,1755203441569,-168.0,0.0002696,2]
[379233962,1755203441579,-1000.0,0.00026963,2]
[379233963,1755203441588,-14919.43291916,0.00026963,2]
[379233964,1755203441598,-1000.0,0.00026967,2]
[379233965,1755203441607,-2885.44153612,0.00026972,2]
[379233966,1755203441617,-168.0,0.00026972,2]
[379233967,1755203441627,-1000.0,0.00026972,2]
[379233968,1755203441637,-1000.0,0.00026977,2]
[379233969,1755203441646,-28873.50185883,0.00026977,2]
[379233970,1755203441656,-6888.12401847,0.00026978,2]
[379233971,1755203441666,-735.36652294,0.0002698,2]
[379233972,1755203441677,-12456.8002501,0.0002698,2]
[379233973,1755203441687,-21058.5532522,0.0002698,2]
[379233974,1755203441996,-167.13273265,0.00026981,2]
[379233975,1755203442007,-1000.0,0.00026982,2]
[379233976,1755203442016,-818.79146001,0.00026982,2]
[379233977,1755203442025,-629.30705078,0.00026982,2]
[379233978,1755203442035,-1470.73304587,0.00026984,2]
[379233979,1755203442044,-629.30705078,0.00026984,2]
[379233980,1755203442053,-205.49755903,0.00026984,2]
[379233981,1755203442063,-735.36652294,0.00026984,2]
[379233982,1755203442072,-205.49755903,0.00026986,2]
[379233983,1755203442082,-1000.0,0.00026986,2]
[379233984,1755203442091,-818.79146001,0.00026987,2]
[379233985,1755203442100,-2462.505851,0.00026987,2]
[379233986,1755203442109,-1000.0,0.00026987,2]
[379233987,1755203442118,-14591.9335624,0.00026988,2]
[379233988,1755203442128,-2885.44153612,0.00026989,2]
[379233989,1755203442138,-684.02940297,0.0002699,2]
[379233990,1755203442146,-20257.76733063,0.0002699,2]
[379233991,1755203442155,-12456.8002501,0.0002699,2]
[379233992,1755203442166,-10529.2766261,0.00026991,2]
[379233993,1755203442175,-1000.0,0.00026991,2]
[379233994,1755203442184,-2885.44153612,0.00026993,2]
[379233995,1755203442193,-1000.0,0.00026996,2]
[379233996,1755203442203,-2885.44153612,0.00026997,2]
[379233997,1755203442212,-410.41764181,0.00027,2]
[379233998,1755203442221,-2000.0,0.00027,2]
[379233999,1755203442230,-2000.0,0.00027,2]
[379234000,1755203442240,-2000.0,0.00027,2]
[379234001,1755203442249,-2000.0,0.00027,2]
[379234002,1755203442258,-250.0,0.00027,7]
[379234003,1755203442267,-1010.6022505,0.00027,2]
[379234004,1755203442277,-1000.0,0.00027,2]
[379234005,1755203442286,-306.0,0.00027003,2]
[379234006,1755203442295,-1000.0,0.00027005,2]
[379234007,1755203442304,-1000.0,0.0002701,2]
[379234008,1755203442313,-3111.0,0.00027013,2]
[379234009,1755203442322,-160.0,0.00027013,2]
[379234010,1755203442333,-287.61899177,0.00027013,2]
[379234011,1755203442342,-311.1,0.00027013,2]
[379234012,1755203442351,-1021.56800621,0.00027014,2]
[379234013,1755203442360,-1000.0,0.00027015,2]
[379234014,1755203442370,-1000.0,0.00027019,2]
[379234015,1755203442381,-1000.0,0.00027024,2]
[379234016,1755203442391,-1000.0,0.00027029,2]
[379234017,1755203442400,-1000.0,0.00027034,2]
[379234018,1755203442409,-1638.37893999,0.00027038,2]
[379234019,1755203442418,-1000.0,0.00027038,2]
[379234020,1755203442428,-10529.2766261,0.00027042,2]
[379234021,1755203442437,-1000.0,0.00027043,2]
[379234022,1755203442447,-1000.0,0.00027043,2]
[379234023,1755203442458,-1000.0,0.00027048,2]
[379234024,1755203442467,-724.07815596,0.00027049,2]
[379234025,1755203442476,-12456.8002501,0.00027052,2]
[379234026,1755203442486,-1000.0,0.00027052,2]
[379234027,1755203442495,-1000.0,0.00027057,2]
[379234028,1755203442505,-1000.0,0.00027062,2]
[379234029,1755203442515,-1000.0,0.00027067,2]
[379234030,1755203442524,-1000.0,0.00027071,2]
[379234031,1755203442535,-1000.0,0.00027076,2]
[379234032,1755203442545,-1000.0,0.00027081,2]
[379234033,1755203442555,-1000.0,0.00027085,2]
[379234034,1755203442564,-10529.2766261,0.0002709,2]
[379234035,1755203442574,-1000.0,0.0002709,2]
[379234036,1755203442584,-1000.0,0.00027095,2]
[379234037,1755203442593,-162.9,0.00027096,2]
[379234038,1755203442603,-1000.0,0.000271,2]
[379234039,1755203442612,-1000.0,0.000271,2]
[379234040,1755203442621,-5126.18,0.000271,2]
[379234041,1755203442631,-1000.0,0.00027104,2]
[379234042,1755203442640,-1000.0,0.00027109,2]
[379234043,1755203442650,-1000.0,0.00027114,2]
[379234044,1755203442659,-1000.0,0.00027119,2]
[379234045,1755203442669,-554.60434282,0.0002712,2]
[379234046,1755203442678,-2354.94,0.00027123,14]
[379234047,1755203442687,-1665.64514772,0.00027123,2]
[379234048,1755203442697,-538.69,0.00027132,2]
[379234049,1755203442706,-150.0,0.00027133,2]
[379234050,1755203442715,-723.0,0.00027137,2]
[379234051,1755203442724,-10529.2766261,0.00027151,2]
[379234052,1755203442734,-1717.20129449,0.00027152,2]
[379234053,1755203442743,-165.34216345,0.00027156,2]
[379234054,1755203442753,-12456.8002501,0.00027161,2]
[379234055,1755203442762,-168.0,0.00027164,2]
[379234056,1755203442771,-185.22,0.00027171,2]
[379234057,1755203442781,-268.36,0.00027171,2]
[379234058,1755203442791,-8288.713,0.00027174,15]
[379234059,1755203442800,-372.209,0.00027174,15]
[379234060,1755203442810,-200.0,0.00027175,2]
[379234061,1755203442819,-1000.0,0.00027184,2]
[379234062,1755203442829,-150.0,0.00027188,2]
[379234063,1755203442838,-10529.2766261,0.00027192,2]
[379234064,1755203442848,-150.0,0.00027199,2]
[379234065,1755203442857,-1000.0,0.000272,2]
[379234066,1755203442866,-150.0,0.00027201,2]
[379234067,1755203442875,-1595.98,0.00027202,2]
[379234068,1755203442885,-1000.0,0.00027211,2]
[379234069,1755203442895,-150.0,0.00027228,2]
[379234070,1755203442904,-10529.2766261,0.00027257,2]
[379234071,1755203442913,-12456.8002501,0.00027257,2]
[379234072,1755203442922,-369.7797607,0.00027258,2]
[379234073,1755203442931,-2101.0,0.00027261,2]
[379234074,1755203442941,-10529.2766261,0.00027262,2]
[379234075,1755203442950,-1000.0,0.00027262,2]
[379234076,1755203442959,-12456.8002501,0.00027267,2]
[379234077,1755203442969,-21058.5532522,0.00027267,2]
[379234078,1755203442977,-1796.02364899,0.00027267,2]
[379234079,1755203442987,-5000.0,0.00027267,2]
[379234080,1755203442996,-12456.8002501,0.00027272,2]
[379234081,1755203443005,-167.13273265,0.00027276,2]